[Event "*** Titled Tuesday Blitz"]
[Site "Chess.com"]
[Date "2019.01.01"]
[Round "2"]
[White "MasterKroket"]
[Black "Zarikovs1999"]
[Result "1-0"]
[WhiteElo "2452"]
[BlackElo "2255"]
[TimeControl "180+2"]
[EndTime "13:21:52 PST"]
[Termination "MasterKroket won by checkmate"]

1. d4 {[%clk 0:03:01.9]} 1... Nf6 {[%clk 0:02:57.2]} 2. c4 {[%clk 0:03:03.3]}
2... c5 {[%clk 0:02:57.6]} 3. d5 {[%clk 0:03:04.1]} 3... b5 {[%clk 0:02:58.8]}
4. cxb5 {[%clk 0:03:06]} 4... a6 {[%clk 0:02:59.7]} 5. bxa6 {[%clk 0:03:07.9]}
5... g6 {[%clk 0:03:00.9]} 6. Nc3 {[%clk 0:03:09.3]} 6... Bg7 {[%clk 0:03:02.2]}
7. Nf3 {[%clk 0:03:10.4]} 7... O-O {[%clk 0:03:03.3]} 8. e4 {[%clk 0:03:10.9]}
8... Qa5 {[%clk 0:03:03.9]} 9. Nd2 {[%clk 0:03:11.9]} 9... d6 {[%clk 0:02:48.6]}
10. Nc4 {[%clk 0:03:09.2]} 10... Qc7 {[%clk 0:02:44.5]} 11. Nb5 {[%clk
0:02:57.3]} 11... Qd8 {[%clk 0:02:30.4]} 12. a7 {[%clk 0:02:57.4]} 12... Nbd7
{[%clk 0:02:27.8]} 13. Bd3 {[%clk 0:02:49]} 13... Ba6 {[%clk 0:02:25.7]} 14. a4
{[%clk 0:02:45.9]} 14... Ne8 {[%clk 0:02:11.6]} 15. O-O {[%clk 0:02:40.7]} 15...
Nc7 {[%clk 0:02:09.6]} 16. Nxc7 {[%clk 0:02:35.8]} 16... Qxc7 {[%clk 0:02:06.7]}
17. Bg5 {[%clk 0:02:36.3]} 17... Rfe8 {[%clk 0:01:59]} 18. Qc2 {[%clk
0:02:25.8]} 18... Rxa7 {[%clk 0:01:53.3]} 19. Rae1 {[%clk 0:02:20.3]} 19... Rb7
{[%clk 0:01:47.7]} 20. b3 {[%clk 0:02:09.2]} 20... h6 {[%clk 0:00:52.1]} 21. Bd2
{[%clk 0:02:06.4]} 21... Reb8 {[%clk 0:00:50.7]} 22. Na5 {[%clk 0:02:02]} 22...
Bxd3 {[%clk 0:00:45.5]} 23. Qxd3 {[%clk 0:02:03.9]} 23... Rb6 {[%clk 0:00:36]}
24. f4 {[%clk 0:01:58]} 24... Bd4+ {[%clk 0:00:33.2]} 25. Kh1 {[%clk 0:01:58.4]}
25... Ra8 {[%clk 0:00:24.4]} 26. Nc4 {[%clk 0:01:48]} 26... Rb7 {[%clk
0:00:21.4]} 27. e5 {[%clk 0:01:29.6]} 27... dxe5 {[%clk 0:00:19.9]} 28. fxe5
{[%clk 0:01:30.6]} 28... Nxe5 {[%clk 0:00:20.1]} 29. Nxe5 {[%clk 0:01:31.2]}
29... Bxe5 {[%clk 0:00:21.4]} 30. Bxh6 {[%clk 0:01:27.9]} 30... Bxh2 {[%clk
0:00:19.1]} 31. Qf3 {[%clk 0:01:17.6]} 31... f6 {[%clk 0:00:13]} 32. Re6 {[%clk
0:00:52.4]} 32... Qg3 {[%clk 0:00:09.5]} 33. Qe4 {[%clk 0:00:36.9]} 33... Kf7
{[%clk 0:00:06.3]} 34. d6 {[%clk 0:00:31.7]} 34... Raa7 {[%clk 0:00:04.3]} 35.
dxe7 {[%clk 0:00:32.4]} 35... Rxe7 {[%clk 0:00:03.3]} 36. Rfxf6+ {[%clk
0:00:32]} 36... Ke8 {[%clk 0:00:04.5]} 37. Rxe7+ {[%clk 0:00:26.7]} 37... Rxe7
{[%clk 0:00:06.4]} 38. Qc6+ {[%clk 0:00:24.5]} 38... Rd7 {[%clk 0:00:04.2]} 39.
Rf8+ {[%clk 0:00:25.4]} 39... Ke7 {[%clk 0:00:05]} 40. Qf6# {[%clk 0:00:27]} 1-0

[Event "*** Titled Tuesday Blitz"]
[Site "Chess.com"]
[Date "2019.01.01"]
[Round "2"]
[White "Ali_rastbod"]
[Black "335394862"]
[Result "1-0"]
[WhiteElo "2544"]
[BlackElo "2303"]
[TimeControl "180+2"]
[EndTime "13:21:54 PST"]
[Termination "Ali_rastbod won by resignation"]

1. c4 {[%clk 0:03:01.9]} 1... e5 {[%clk 0:02:57.8]} 2. Nc3 {[%clk 0:03:03.2]}
2... f5 {[%clk 0:02:58.6]} 3. Nf3 {[%clk 0:03:01.9]} 3... Nc6 {[%clk 0:02:58.9]}
4. d4 {[%clk 0:03:02.7]} 4... e4 {[%clk 0:03:00.2]} 5. Ng5 {[%clk 0:03:03]} 5...
h6 {[%clk 0:03:01.1]} 6. Nh3 {[%clk 0:03:03.4]} 6... Nf6 {[%clk 0:02:59.3]} 7.
e3 {[%clk 0:03:04.4]} 7... Bb4 {[%clk 0:02:58.8]} 8. Bd2 {[%clk 0:03:04.9]} 8...
d5 {[%clk 0:02:58.9]} 9. cxd5 {[%clk 0:03:01.5]} 9... Bxc3 {[%clk 0:02:57.4]}
10. bxc3 {[%clk 0:02:58.3]} 10... Nxd5 {[%clk 0:02:56.9]} 11. c4 {[%clk
0:02:59.6]} 11... Nf6 {[%clk 0:02:52.9]} 12. Nf4 {[%clk 0:02:56.3]} 12... O-O
{[%clk 0:02:48.2]} 13. h4 {[%clk 0:02:54.7]} 13... Ng4 {[%clk 0:02:28.2]} 14.
Bc3 {[%clk 0:02:48.5]} 14... a5 {[%clk 0:02:18.2]} 15. Be2 {[%clk 0:02:46.3]}
15... Nb4 {[%clk 0:02:15.2]} 16. a3 {[%clk 0:02:43.7]} 16... Nc6 {[%clk
0:02:15.2]} 17. Bxg4 {[%clk 0:02:30.6]} 17... fxg4 {[%clk 0:02:16]} 18. d5
{[%clk 0:02:32.5]} 18... Ne7 {[%clk 0:02:10]} 19. Qd4 {[%clk 0:02:33.4]} 19...
Nf5 {[%clk 0:02:09.9]} 20. Qxe4 {[%clk 0:02:32.7]} 20... Nxh4 {[%clk 0:02:00.1]}
21. Ne6 {[%clk 0:02:08.8]} 21... Bxe6 {[%clk 0:01:59]} 22. dxe6 {[%clk
0:02:09.7]} 22... Qg5 {[%clk 0:01:51.1]} 23. Qxb7 {[%clk 0:01:47]} 23... Rae8
{[%clk 0:01:38.8]} 24. Qd5 {[%clk 0:01:47.4]} 24... Qxd5 {[%clk 0:01:17.4]} 25.
cxd5 {[%clk 0:01:49.3]} 25... Nxg2+ {[%clk 0:01:00.4]} 26. Ke2 {[%clk 0:01:48]}
26... Rf3 {[%clk 0:01:00.6]} 27. Rag1 {[%clk 0:01:36.1]} 27... Nf4+ {[%clk
0:00:57.2]} 28. exf4 {[%clk 0:01:28.2]} 28... Rxc3 {[%clk 0:00:59.1]} 29. Rxg4
{[%clk 0:01:20.6]} 29... Kf8 {[%clk 0:00:54]} 30. f5 {[%clk 0:01:17.5]} 30...
Rb8 {[%clk 0:00:51]} 31. Rd1 {[%clk 0:01:09]} 31... Rb2+ {[%clk 0:00:47]} 32.
Rd2 {[%clk 0:01:10]} 32... Rxd2+ {[%clk 0:00:45.7]} 33. Kxd2 {[%clk 0:01:11.9]}
33... Rf3 {[%clk 0:00:46.9]} 34. Rc4 {[%clk 0:00:54.3]} 34... Rxf2+ {[%clk
0:00:39.7]} 35. Ke3 {[%clk 0:00:55]} 35... Rxf5 {[%clk 0:00:40.6]} 36. Ke4
{[%clk 0:00:56.5]} 36... Rf1 {[%clk 0:00:28.1]} 37. Rxc7 {[%clk 0:00:56.5]}
37... Re1+ {[%clk 0:00:28.3]} 38. Kf5 {[%clk 0:00:57.7]} 38... Rf1+ {[%clk
0:00:27.7]} 39. Ke5 {[%clk 0:00:59.1]} 39... g5 {[%clk 0:00:19.3]} 40. Rc8+
{[%clk 0:00:57.1]} 40... Kg7 {[%clk 0:00:18.6]} 41. d6 {[%clk 0:00:57.3]} 41...
Re1+ {[%clk 0:00:18.8]} 42. Kd5 {[%clk 0:00:58.5]} 42... Rd1+ {[%clk 0:00:20.1]}
43. Kc6 {[%clk 0:00:57.4]} 43... Rc1+ {[%clk 0:00:21.1]} 44. Kd7 {[%clk
0:00:58.6]} 44... Re1 {[%clk 0:00:12]} 45. e7 {[%clk 0:00:59.7]} 45... g4 {[%clk
0:00:11.5]} 46. e8=Q {[%clk 0:01:00.9]} 46... Rxe8 {[%clk 0:00:12.6]} 47. Rxe8
{[%clk 0:01:02.8]} 47... h5 {[%clk 0:00:12.4]} 48. Kc7 {[%clk 0:01:03.8]} 48...
g3 {[%clk 0:00:12.7]} 49. d7 {[%clk 0:01:05.3]} 49... g2 {[%clk 0:00:14.1]} 50.
d8=Q {[%clk 0:01:02.7]} 50... g1=Q {[%clk 0:00:15.5]} 51. Rg8+ {[%clk
0:01:03.8]} 1-0

[Event "*** Titled Tuesday Blitz"]
[Site "Chess.com"]
[Date "2019.01.01"]
[Round "2"]
[White "evgenyermolaev"]
[Black "Daniela_Movileanu"]
[Result "0-1"]
[WhiteElo "2467"]
[BlackElo "2508"]
[TimeControl "180+2"]
[EndTime "13:22:03 PST"]
[Termination "Daniela_Movileanu won by resignation"]

1. e4 {[%clk 0:03:01.6]} 1... c5 {[%clk 0:02:59.8]} 2. Nf3 {[%clk 0:03:00.7]}
2... g6 {[%clk 0:03:00.3]} 3. d4 {[%clk 0:03:01.1]} 3... cxd4 {[%clk 0:03:02.2]}
4. Nxd4 {[%clk 0:03:02.7]} 4... Nc6 {[%clk 0:03:00.4]} 5. Nc3 {[%clk 0:03:02.5]}
5... Bg7 {[%clk 0:03:01.1]} 6. Be3 {[%clk 0:03:03.8]} 6... Nf6 {[%clk 0:03:02]}
7. Nxc6 {[%clk 0:03:04]} 7... bxc6 {[%clk 0:03:01.5]} 8. e5 {[%clk 0:03:05.1]}
8... Ng8 {[%clk 0:03:01]} 9. Bd4 {[%clk 0:03:05.4]} 9... Nh6 {[%clk 0:02:49.8]}
10. e6 {[%clk 0:03:02.6]} 10... f6 {[%clk 0:02:50.6]} 11. exd7+ {[%clk
0:03:02.1]} 11... Bxd7 {[%clk 0:02:52.5]} 12. Bc4 {[%clk 0:03:02.9]} 12... Nf7
{[%clk 0:02:46.3]} 13. O-O {[%clk 0:02:55.5]} 13... O-O {[%clk 0:02:46.7]} 14.
Ne4 {[%clk 0:02:47.1]} 14... e5 {[%clk 0:02:43.7]} 15. Bc5 {[%clk 0:02:36.6]}
15... Bf5 {[%clk 0:02:37.5]} 16. Bxf8 {[%clk 0:02:23.4]} 16... Qxf8 {[%clk
0:02:39.4]} 17. Nd6 {[%clk 0:02:17.4]} 17... Rd8 {[%clk 0:02:32.7]} 18. Nxf7
{[%clk 0:02:18]} 18... Rxd1 {[%clk 0:02:29.2]} 19. Raxd1 {[%clk 0:02:19.9]}
19... Qe7 {[%clk 0:02:22.6]} 20. Rd8+ {[%clk 0:01:32.9]} 20... Bf8 {[%clk
0:02:22.5]} 21. Nh6+ {[%clk 0:00:56.2]} 21... Kg7 {[%clk 0:02:22.5]} 22. Nxf5+
{[%clk 0:00:57.7]} 22... gxf5 {[%clk 0:02:24.3]} 23. Rfd1 {[%clk 0:00:58.2]}
23... Qc5 {[%clk 0:02:24.8]} 24. Be6 {[%clk 0:00:47.4]} 24... Qxc2 {[%clk
0:02:11.2]} 25. h3 {[%clk 0:00:32]} 25... Bc5 {[%clk 0:02:10.8]} 26. R1d2 {[%clk
0:00:29.3]} 26... Qc1+ {[%clk 0:02:08.6]} 27. Kh2 {[%clk 0:00:30.8]} 27... Bd4
{[%clk 0:01:46]} 28. Rd3 {[%clk 0:00:25.2]} 28... Bxf2 {[%clk 0:01:37.5]} 29.
Rd1 {[%clk 0:00:19.6]} 29... Qf4+ {[%clk 0:01:29.6]} 30. Kh1 {[%clk 0:00:19.9]}
30... e4 {[%clk 0:01:27.2]} 31. Bg8 {[%clk 0:00:12.8]} 31... h5 {[%clk 0:01:09]}
32. Bc4 {[%clk 0:00:09.6]} 32... Kh6 {[%clk 0:00:57.7]} 33. Rg8 {[%clk 0:00:07]}
33... c5 {[%clk 0:00:49]} 34. Bf7 {[%clk 0:00:08.3]} 34... Bd4 {[%clk
0:00:43.8]} 35. Rg6+ {[%clk 0:00:04.9]} 35... Kh7 {[%clk 0:00:44]} 36. Rg8
{[%clk 0:00:05.8]} 36... e3 {[%clk 0:00:36.8]} 37. Re8 {[%clk 0:00:05.1]} 37...
Kh6 {[%clk 0:00:23.9]} 38. Rh8+ {[%clk 0:00:03.5]} 38... Kg7 {[%clk 0:00:24.6]}
39. Rxh5 {[%clk 0:00:04.1]} 39... Kxf7 {[%clk 0:00:25.2]} 40. Rh7+ {[%clk
0:00:05.3]} 40... Ke6 {[%clk 0:00:25.9]} 0-1

[Event "*** Titled Tuesday Blitz"]
[Site "Chess.com"]
[Date "2019.01.01"]
[Round "2"]
[White "Hikaru"]
[Black "PulpanJ"]
[Result "1-0"]
[WhiteElo "3050"]
[BlackElo "2602"]
[TimeControl "180+2"]
[EndTime "13:22:05 PST"]
[Termination "Hikaru won by resignation"]

1. Nf3 {[%clk 0:03:01.9]} 1... d5 {[%clk 0:02:56.8]} 2. b3 {[%clk 0:03:02.8]}
2... Nf6 {[%clk 0:02:52]} 3. Bb2 {[%clk 0:03:03.5]} 3... e6 {[%clk 0:02:42.3]}
4. e3 {[%clk 0:02:48.4]} 4... Be7 {[%clk 0:02:37.9]} 5. c4 {[%clk 0:02:48.7]}
5... O-O {[%clk 0:02:37.9]} 6. d4 {[%clk 0:02:46.2]} 6... b6 {[%clk 0:02:35.8]}
7. Nbd2 {[%clk 0:02:44.5]} 7... Bb7 {[%clk 0:02:36.2]} 8. cxd5 {[%clk
0:02:45.4]} 8... exd5 {[%clk 0:02:29.9]} 9. Bd3 {[%clk 0:02:43.5]} 9... c5
{[%clk 0:02:30]} 10. dxc5 {[%clk 0:02:44.4]} 10... bxc5 {[%clk 0:02:29.4]} 11.
O-O {[%clk 0:02:45.3]} 11... Nbd7 {[%clk 0:02:30]} 12. Rc1 {[%clk 0:02:46.2]}
12... Rc8 {[%clk 0:02:26]} 13. Re1 {[%clk 0:02:47]} 13... Re8 {[%clk 0:02:24.1]}
14. e4 {[%clk 0:02:47.8]} 14... dxe4 {[%clk 0:02:09.5]} 15. Nxe4 {[%clk
0:02:49.7]} 15... Nxe4 {[%clk 0:02:11.4]} 16. Bxe4 {[%clk 0:02:44.2]} 16... Bxe4
{[%clk 0:02:13.3]} 17. Rxe4 {[%clk 0:02:45.8]} 17... Bf6 {[%clk 0:02:15]} 18.
Bxf6 {[%clk 0:02:40.9]} 18... Nxf6 {[%clk 0:02:08.8]} 19. Qxd8 {[%clk
0:02:42.8]} 19... Rcxd8 {[%clk 0:01:54.7]} 20. Rxe8+ {[%clk 0:02:11.6]} 20...
Nxe8 {[%clk 0:01:56.6]} 21. Kf1 {[%clk 0:02:12.2]} 21... Rd5 {[%clk 0:01:51.2]}
22. Rc4 {[%clk 0:02:12.9]} 22... Kf8 {[%clk 0:01:45.7]} 23. Ra4 {[%clk
0:02:13.8]} 23... Rd7 {[%clk 0:01:42]} 24. Ne5 {[%clk 0:02:12.1]} 24... Rc7
{[%clk 0:01:41.6]} 25. Ra6 {[%clk 0:02:11.5]} 25... Re7 {[%clk 0:01:32.9]} 26.
Nd3 {[%clk 0:01:51.5]} 26... Rc7 {[%clk 0:01:25.5]} 27. Ra5 {[%clk 0:01:52.2]}
27... c4 {[%clk 0:01:16.9]} 28. bxc4 {[%clk 0:01:54.1]} 28... Nd6 {[%clk
0:01:15.6]} 29. c5 {[%clk 0:01:53.8]} 29... Ne4 {[%clk 0:01:10.6]} 30. f3 {[%clk
0:01:51.9]} 30... Nf6 {[%clk 0:00:45.9]} 31. Nb4 {[%clk 0:01:50.2]} 31... Ke8
{[%clk 0:00:39.6]} 32. c6 {[%clk 0:01:49.8]} 32... Ke7 {[%clk 0:00:36.6]} 33. g4
{[%clk 0:01:42.8]} 33... h6 {[%clk 0:00:35.2]} 34. h4 {[%clk 0:01:43.7]} 34...
Kd6 {[%clk 0:00:27.6]} 35. g5 {[%clk 0:01:44.7]} 35... hxg5 {[%clk 0:00:29.5]}
36. hxg5 {[%clk 0:01:45.7]} 36... Ng8 {[%clk 0:00:31.2]} 37. Kf2 {[%clk
0:01:08.2]} 37... Ne7 {[%clk 0:00:31.5]} 38. Ke3 {[%clk 0:01:09.3]} 38... Nxc6
{[%clk 0:00:29.8]} 39. Ra6 {[%clk 0:01:10.3]} 39... Kd7 {[%clk 0:00:28.3]} 40.
Nxc6 {[%clk 0:01:11.1]} 40... Rxc6 {[%clk 0:00:30.2]} 41. Rxa7+ {[%clk
0:01:12.7]} 41... Ke6 {[%clk 0:00:31.5]} 42. a4 {[%clk 0:01:09]} 42... Rc4
{[%clk 0:00:25.5]} 43. a5 {[%clk 0:01:08.5]} 43... Ra4 {[%clk 0:00:23.4]} 44. a6
{[%clk 0:01:06.6]} 44... g6 {[%clk 0:00:20.9]} 45. f4 {[%clk 0:01:08]} 45... f6
{[%clk 0:00:21.7]} 46. Ra8 {[%clk 0:00:53.7]} 46... Ra3+ {[%clk 0:00:05.3]} 47.
Kd2 {[%clk 0:00:47.2]} 47... fxg5 {[%clk 0:00:03.8]} 48. a7 {[%clk 0:00:48.3]}
48... gxf4 {[%clk 0:00:04.5]} 49. Re8+ {[%clk 0:00:44.6]} 1-0

[Event "*** Titled Tuesday Blitz"]
[Site "Chess.com"]
[Date "2019.01.01"]
[Round "2"]
[White "xpto15"]
[Black "NemtsevIgor"]
[Result "1-0"]
[WhiteElo "2178"]
[BlackElo "2305"]
[TimeControl "180+2"]
[EndTime "13:22:08 PST"]
[Termination "xpto15 won by checkmate"]

1. e4 {[%clk 0:03:01.9]} 1... c6 {[%clk 0:02:58.6]} 2. d4 {[%clk 0:03:02.1]}
2... d5 {[%clk 0:02:58.3]} 3. e5 {[%clk 0:03:03.6]} 3... c5 {[%clk 0:02:58.6]}
4. dxc5 {[%clk 0:03:02.7]} 4... Nc6 {[%clk 0:02:59.1]} 5. Bb5 {[%clk 0:03:02.9]}
5... e6 {[%clk 0:02:59.5]} 6. Nf3 {[%clk 0:03:00.2]} 6... Ne7 {[%clk 0:02:57.5]}
7. O-O {[%clk 0:03:00.3]} 7... Ng6 {[%clk 0:02:58]} 8. a3 {[%clk 0:03:00.9]}
8... Bxc5 {[%clk 0:02:58.1]} 9. b4 {[%clk 0:03:01.2]} 9... Bb6 {[%clk
0:02:59.1]} 10. Bb2 {[%clk 0:03:01.9]} 10... O-O {[%clk 0:03:00]} 11. Nbd2
{[%clk 0:03:02.3]} 11... Bd7 {[%clk 0:02:56.4]} 12. Bxc6 {[%clk 0:03:02.6]}
12... Bxc6 {[%clk 0:02:53.5]} 13. Re1 {[%clk 0:03:03.5]} 13... a5 {[%clk
0:02:48.4]} 14. Nd4 {[%clk 0:03:00.1]} 14... axb4 {[%clk 0:02:42.4]} 15. axb4
{[%clk 0:02:58.9]} 15... Qc7 {[%clk 0:02:30.2]} 16. Qe2 {[%clk 0:02:41.6]} 16...
Rxa1 {[%clk 0:02:26.4]} 17. Bxa1 {[%clk 0:02:42.4]} 17... Ra8 {[%clk 0:02:21.6]}
18. N2b3 {[%clk 0:02:02.6]} 18... Ba4 {[%clk 0:02:14.8]} 19. Bb2 {[%clk
0:01:50.8]} 19... Bxb3 {[%clk 0:02:14.7]} 20. Nxb3 {[%clk 0:01:48]} 20... Ra2
{[%clk 0:02:04.7]} 21. Rb1 {[%clk 0:01:48.7]} 21... Qc4 {[%clk 0:01:57.3]} 22.
Qxc4 {[%clk 0:01:45.9]} 22... dxc4 {[%clk 0:01:58.2]} 23. Nc5 {[%clk 0:01:45.2]}
23... c3 {[%clk 0:01:48.1]} 24. Bxc3 {[%clk 0:01:37.1]} 24... Rxc2 {[%clk
0:01:49.1]} 25. Bd4 {[%clk 0:01:38.3]} 25... Nf4 {[%clk 0:01:45.6]} 26. Kf1
{[%clk 0:01:36.8]} 26... Nd5 {[%clk 0:01:42.6]} 27. Nb3 {[%clk 0:01:37.7]} 27...
Bxd4 {[%clk 0:01:31.7]} 28. Nxd4 {[%clk 0:01:39.6]} 28... Rd2 {[%clk 0:01:32.9]}
29. Nb5 {[%clk 0:01:38.2]} 29... g5 {[%clk 0:01:32.1]} 30. Nd6 {[%clk
0:01:36.5]} 30... b6 {[%clk 0:01:31.5]} 31. g3 {[%clk 0:01:37.9]} 31... h6
{[%clk 0:01:28.5]} 32. b5 {[%clk 0:01:33.4]} 32... Kg7 {[%clk 0:01:28.5]} 33.
Ra1 {[%clk 0:01:32.7]} 33... Rc2 {[%clk 0:01:19.5]} 34. Ra7 {[%clk 0:01:18.3]}
34... g4 {[%clk 0:01:16.1]} 35. Rxf7+ {[%clk 0:01:14.4]} 35... Kg6 {[%clk
0:01:17.4]} 36. Rf8 {[%clk 0:01:13.3]} 36... h5 {[%clk 0:01:13.6]} 37. Rd8
{[%clk 0:01:11.2]} 37... Rb2 {[%clk 0:01:09.2]} 38. Re8 {[%clk 0:01:09.3]} 38...
Nb4 {[%clk 0:00:54.7]} 39. Rxe6+ {[%clk 0:01:06.6]} 39... Kg7 {[%clk 0:00:55.9]}
40. Nf5+ {[%clk 0:01:03.9]} 40... Kg8 {[%clk 0:00:55.5]} 41. Rg6+ {[%clk
0:00:52]} 41... Kf7 {[%clk 0:00:51.1]} 42. Rf6+ {[%clk 0:00:52.9]} 42... Kg8
{[%clk 0:00:47.3]} 43. Ne7+ {[%clk 0:00:51.2]} 43... Kg7 {[%clk 0:00:48]} 44.
Rd6 {[%clk 0:00:49.2]} 44... Nc2 {[%clk 0:00:38.9]} 45. Nf5+ {[%clk 0:00:47.7]}
45... Kf8 {[%clk 0:00:39.1]} 46. Rxb6 {[%clk 0:00:41.6]} 46... Rb1+ {[%clk
0:00:27.9]} 47. Ke2 {[%clk 0:00:38.2]} 47... Na3 {[%clk 0:00:24.9]} 48. e6
{[%clk 0:00:36.9]} 48... Nxb5 {[%clk 0:00:21.9]} 49. Rb8# {[%clk 0:00:35.7]} 1-0

[Event "*** Titled Tuesday Blitz"]
[Site "Chess.com"]
[Date "2019.01.01"]
[Round "2"]
[White "attack2mateU"]
[Black "maziarbagheri"]
[Result "1-0"]
[WhiteElo "2610"]
[BlackElo "2360"]
[TimeControl "180+2"]
[EndTime "13:22:15 PST"]
[Termination "attack2mateU won by resignation"]

1. e4 {[%clk 0:03:01.9]} 1... e5 {[%clk 0:02:56.3]} 2. Nf3 {[%clk 0:03:03.3]}
2... Nc6 {[%clk 0:02:56.8]} 3. Bb5 {[%clk 0:03:04.8]} 3... a6 {[%clk 0:02:56.7]}
4. Ba4 {[%clk 0:03:06]} 4... Nf6 {[%clk 0:02:57.6]} 5. O-O {[%clk 0:03:06.5]}
5... Be7 {[%clk 0:02:58.4]} 6. Re1 {[%clk 0:03:07.4]} 6... b5 {[%clk 0:02:57.5]}
7. Bb3 {[%clk 0:03:08.7]} 7... O-O {[%clk 0:02:57.5]} 8. a4 {[%clk 0:03:08.5]}
8... b4 {[%clk 0:02:57.6]} 9. d3 {[%clk 0:03:04.5]} 9... d6 {[%clk 0:02:58.7]}
10. a5 {[%clk 0:02:56.4]} 10... Rb8 {[%clk 0:02:59.8]} 11. Nbd2 {[%clk
0:02:54.9]} 11... Be6 {[%clk 0:02:58.9]} 12. Bxe6 {[%clk 0:02:54.1]} 12... fxe6
{[%clk 0:02:59.2]} 13. Nb3 {[%clk 0:02:51.8]} 13... Qe8 {[%clk 0:02:54.7]} 14.
d4 {[%clk 0:02:42.9]} 14... Nh5 {[%clk 0:02:46.4]} 15. dxe5 {[%clk 0:02:25.6]}
15... dxe5 {[%clk 0:02:45.4]} 16. Qe2 {[%clk 0:02:25.6]} 16... Rb5 {[%clk
0:02:34.4]} 17. Be3 {[%clk 0:02:12.3]} 17... Qg6 {[%clk 0:02:03.5]} 18. Nfd2
{[%clk 0:02:00.3]} 18... Nf4 {[%clk 0:01:54.8]} 19. Qf1 {[%clk 0:01:47.5]} 19...
Nd4 {[%clk 0:01:26.4]} 20. Nxd4 {[%clk 0:01:40]} 20... exd4 {[%clk 0:01:27.7]}
21. Bxf4 {[%clk 0:01:40.4]} 21... Rxf4 {[%clk 0:01:26.4]} 22. g3 {[%clk
0:01:21.1]} 22... h5 {[%clk 0:01:21.9]} 23. Qc4 {[%clk 0:01:07.1]} 23... h4
{[%clk 0:00:58.5]} 24. Qxc7 {[%clk 0:01:06.3]} 24... Rf7 {[%clk 0:00:48.2]} 25.
Qc8+ {[%clk 0:00:58.8]} 25... Rf8 {[%clk 0:00:43.9]} 26. Qxa6 {[%clk 0:00:59.8]}
26... Rg5 {[%clk 0:00:36.3]} 27. Nf1 {[%clk 0:00:58.8]} 27... d3 {[%clk
0:00:28.9]} 28. Qxd3 {[%clk 0:00:54.7]} 28... Bc5 {[%clk 0:00:29.7]} 29. Re3
{[%clk 0:00:51]} 29... hxg3 {[%clk 0:00:26.2]} 30. hxg3 {[%clk 0:00:50.9]} 30...
Bxe3 {[%clk 0:00:21.1]} 31. Qxe3 {[%clk 0:00:51.1]} 31... Rh5 {[%clk 0:00:15.5]}
32. a6 {[%clk 0:00:25.7]} 32... Qh7 {[%clk 0:00:15.9]} 33. g4 {[%clk 0:00:27.2]}
33... Rh1+ {[%clk 0:00:15.9]} 34. Kg2 {[%clk 0:00:28.7]} 34... Qh4 {[%clk
0:00:14.4]} 35. Qg3 {[%clk 0:00:29]} 35... Qh6 {[%clk 0:00:02.6]} 36. a7 {[%clk
0:00:25.1]} 36... Ra8 {[%clk 0:00:02.6]} 37. Ra6 {[%clk 0:00:13.8]} 37... Kh7
{[%clk 0:00:02.2]} 38. Nh2 {[%clk 0:00:12.1]} 38... Rc1 {[%clk 0:00:02.3]} 39.
g5 {[%clk 0:00:12.6]} 39... Qh5 {[%clk 0:00:02.9]} 40. Rxe6 {[%clk 0:00:12.1]}
40... Rxc2 {[%clk 0:00:03.1]} 41. g6+ {[%clk 0:00:13.4]} 41... Kh6 {[%clk
0:00:04.1]} 42. Ng4+ {[%clk 0:00:14.4]} 42... Kg5 {[%clk 0:00:05.5]} 43. Re5+
{[%clk 0:00:14.9]} 43... Kxg6 {[%clk 0:00:06.9]} 44. Rxh5 {[%clk 0:00:15.8]}
44... Kxh5 {[%clk 0:00:07.4]} 1-0

[Event "*** Titled Tuesday Blitz"]
[Site "Chess.com"]
[Date "2019.01.01"]
[Round "2"]
[White "CaptainCasanova"]
[Black "BartoszSocko"]
[Result "1-0"]
[WhiteElo "2748"]
[BlackElo "2648"]
[TimeControl "180+2"]
[EndTime "13:22:23 PST"]
[Termination "CaptainCasanova won by resignation"]

1. d4 {[%clk 0:03:01.9]} 1... Nf6 {[%clk 0:02:56.1]} 2. c4 {[%clk 0:03:02.7]}
2... e6 {[%clk 0:02:57.5]} 3. Nf3 {[%clk 0:03:03.1]} 3... Bb4+ {[%clk 0:02:58]}
4. Nbd2 {[%clk 0:03:02.7]} 4... a5 {[%clk 0:02:58.3]} 5. a3 {[%clk 0:02:57.7]}
5... Be7 {[%clk 0:02:59.3]} 6. e3 {[%clk 0:02:56.8]} 6... b6 {[%clk 0:02:59.9]}
7. Bd3 {[%clk 0:02:57.6]} 7... Bb7 {[%clk 0:02:57.8]} 8. O-O {[%clk 0:02:59.1]}
8... O-O {[%clk 0:02:58.5]} 9. b3 {[%clk 0:02:59.8]} 9... d5 {[%clk 0:02:59.7]}
10. Bb2 {[%clk 0:03:00.5]} 10... Nbd7 {[%clk 0:03:01]} 11. Qe2 {[%clk 0:03:00]}
11... c5 {[%clk 0:03:02.1]} 12. dxc5 {[%clk 0:02:54.9]} 12... Nxc5 {[%clk
0:03:02.7]} 13. Bc2 {[%clk 0:02:56.1]} 13... a4 {[%clk 0:02:43.9]} 14. b4 {[%clk
0:02:55.8]} 14... Nce4 {[%clk 0:02:45.1]} 15. Nxe4 {[%clk 0:02:47.4]} 15... Nxe4
{[%clk 0:02:43.8]} 16. Rfd1 {[%clk 0:02:35.4]} 16... Qe8 {[%clk 0:02:33.6]} 17.
Bd4 {[%clk 0:02:08.1]} 17... Bf6 {[%clk 0:02:22.4]} 18. Bxf6 {[%clk 0:02:00.5]}
18... Nxf6 {[%clk 0:02:24.3]} 19. Nd4 {[%clk 0:01:58.4]} 19... Qe7 {[%clk
0:02:20.7]} 20. Rac1 {[%clk 0:01:38.3]} 20... Rfc8 {[%clk 0:02:21.3]} 21. Bd3
{[%clk 0:01:34.7]} 21... dxc4 {[%clk 0:02:18.5]} 22. Bxc4 {[%clk 0:01:36.6]}
22... Ne4 {[%clk 0:02:15.5]} 23. f3 {[%clk 0:01:25.7]} 23... Nd6 {[%clk
0:02:14]} 24. Bd3 {[%clk 0:01:26.9]} 24... Qg5 {[%clk 0:02:11.4]} 25. Kh1 {[%clk
0:01:14.3]} 25... h5 {[%clk 0:02:09.5]} 26. Nb5 {[%clk 0:01:10.4]} 26... Nxb5
{[%clk 0:02:00]} 27. Bxb5 {[%clk 0:01:12.2]} 27... h4 {[%clk 0:01:57.9]} 28. h3
{[%clk 0:01:13]} 28... g6 {[%clk 0:01:39.6]} 29. Rxc8+ {[%clk 0:00:37.7]} 29...
Rxc8 {[%clk 0:01:41.5]} 30. Bxa4 {[%clk 0:00:36.3]} 30... Rc3 {[%clk 0:01:32.8]}
31. Rd3 {[%clk 0:00:19.2]} 31... Ba6 {[%clk 0:01:32.9]} 32. b5 {[%clk 0:00:20]}
32... Rc1+ {[%clk 0:01:32.3]} 33. Rd1 {[%clk 0:00:20.5]} 33... Bxb5 {[%clk
0:01:27.9]} 34. Bxb5 {[%clk 0:00:21.2]} 34... Rxd1+ {[%clk 0:01:28.7]} 35. Qxd1
{[%clk 0:00:22.5]} 35... Qxb5 {[%clk 0:01:30.3]} 36. Qd8+ {[%clk 0:00:24.4]}
36... Kg7 {[%clk 0:01:27.2]} 37. Qxh4 {[%clk 0:00:26.3]} 37... e5 {[%clk
0:01:20.4]} 38. Kh2 {[%clk 0:00:26]} 38... Qc5 {[%clk 0:01:17.9]} 39. Qe4 {[%clk
0:00:26.5]} 39... f5 {[%clk 0:01:13.2]} 40. Qd3 {[%clk 0:00:27.6]} 40... Kf6
{[%clk 0:01:10.5]} 41. Qd8+ {[%clk 0:00:27.7]} 41... Kg7 {[%clk 0:01:11.1]} 42.
Qd3 {[%clk 0:00:27.3]} 42... Kf6 {[%clk 0:01:11.5]} 43. a4 {[%clk 0:00:28]}
43... Ke6 {[%clk 0:01:09.3]} 44. Kg3 {[%clk 0:00:26.8]} 44... g5 {[%clk
0:01:04.2]} 45. e4 {[%clk 0:00:21.5]} 45... f4+ {[%clk 0:01:03]} 46. Kg4 {[%clk
0:00:23]} 46... Qf2 {[%clk 0:00:54.2]} 47. Qd5+ {[%clk 0:00:22.5]} 47... Kf6
{[%clk 0:00:55.5]} 48. Qd6+ {[%clk 0:00:23.9]} 48... Kf7 {[%clk 0:00:56.7]} 49.
Kf5 {[%clk 0:00:18.5]} 49... Qd4 {[%clk 0:00:41.3]} 50. Qc7+ {[%clk 0:00:18.5]}
50... Ke8 {[%clk 0:00:33.3]} 51. Ke6 {[%clk 0:00:19]} 1-0